fUST/lending_fUST_20240728
["ID","MTS","AMOUNT","RATE_DAILY","PERIOD"]
[333400563,1722107255373,-642.68,0.00013972,2]
[333400564,1722107255395,-500.0,0.00013972,2]
[333400565,1722107255416,-517.1,0.00013972,2]
[333400566,1722107255440,-151.0,0.00013972,2]
[333400567,1722107255462,-500.0,0.00013972,2]
[333400568,1722107255484,-500.0,0.00013972,2]
[333400569,1722107255506,-500.0,0.00013972,2]
[333400570,1722107255528,-500.0,0.00013972,2]
[333400571,1722107255551,-510.51,0.00013972,2]
[333400572,1722107255694,-500.0,0.00013972,2]
[333400573,1722107255718,-544.51,0.00013972,2]
[333400574,1722107255741,-500.0,0.00013972,2]
[333400575,1722107255763,-151.0,0.00013972,2]
[333400576,1722107255785,-151.0,0.00013972,2]
[333400577,1722107255807,-646.49,0.00013972,2]
[333400578,1722107255828,-708.14,0.00013972,2]
[333400579,1722107255850,-500.0,0.00013972,2]
[333400580,1722107255871,-500.0,0.00013972,2]
[333400581,1722107255893,-500.0,0.00013972,2]
[333400582,1722107255914,-500.0,0.00013972,2]
[333400583,1722107255937,-500.0,0.00013972,2]
[333400584,1722107255959,-500.0,0.00013972,2]
[333400585,1722107255980,-500.0,0.00013972,2]
[333400586,1722107256002,-500.0,0.00013972,2]
[333400587,1722107256029,-500.0,0.00013972,2]
[333400588,1722107256051,-850.1,0.00013972,2]
[333400589,1722107256073,-500.0,0.00013972,2]
[333400590,1722107256095,-974.44,0.00013972,2]
[333400591,1722107256116,-500.0,0.00013972,2]
[333400592,1722107256138,-276.271723,0.00013972,2]
[333400593,1722107256161,-629.84,0.00013972,2]
[333400594,1722107256184,-555.73,0.00013972,2]
[333400595,1722107256207,-276.271723,0.00013972,2]
[333400596,1722107256229,-746.96,0.00013972,2]
[333400597,1722107256251,-500.0,0.00013972,2]
[333400598,1722107256275,-3766.74,0.00013972,2]
[333400599,1722107256301,-500.0,0.00013972,2]
[333400600,1722107256322,-151.0,0.00013972,2]
[333400601,1722107256345,-876.33,0.00013972,2]
[333400602,1722107256368,-1684.79,0.00013972,2]
[333400603,1722107256391,-6554.33,0.00013972,2]
[333400604,1722107256413,-336.8,0.00013972,2]
[333400605,1722107256437,-867.81,0.00013972,2]
[333400606,1722107256460,-1868.07,0.00013972,2]
[333400607,1722107256481,-840.67,0.00013972,2]
[333400608,1722107256503,-500.0,0.00013972,2]
[333400609,1722107256525,-2878.37,0.00013972,2]
[333400610,1722107256547,-995.95,0.00013972,2]
[333400611,1722107256569,-500.0,0.00013972,2]
[333400612,1722107256591,-1200.36,0.00013972,2]
[333400613,1722107256614,-2.03250122,0.00013972,2]
[333400614,1722107257096,-837.52749878,0.00013972,2]
[333400615,1722107257117,-500.0,0.00013972,2]
[333400616,1722107257138,-500.0,0.00013972,2]
[333400617,1722107257161,-500.0,0.00013972,2]
[333400618,1722107257191,-500.0,0.00013972,2]
[333400619,1722107257213,-578.43,0.00013972,2]
[333400620,1722107257234,-567.97,0.00013972,2]
[333400621,1722107257254,-821.69,0.00013972,2]
[333400622,1722107257275,-680.1,0.00013972,2]
[333400623,1722107257295,-539.66,0.00013972,2]
[333400624,1722107257315,-939.26,0.00013972,2]
[333400625,1722107257335,-862.6,0.00013972,2]
[333400626,1722107257357,-500.0,0.00013972,2]
[333400627,1722107257378,-3113.28145122,0.00013972,2]
[333400628,1722107257541,-1504.01854878,0.00013972,2]
[333400629,1722107257565,-697.17,0.00013972,2]
[333400630,1722107257587,-500.0,0.00013972,2]
[333400631,1722107257609,-521.28,0.00013972,2]
[333400632,1722107257634,-967.06,0.00013972,2]
[333400633,1722107257658,-1778.05,0.00013972,2]
[333400634,1722107257688,-500.0,0.00013972,2]
[333400635,1722107257713,-189.68,0.00013972,2]
[333400636,1722107257741,-2779.11,0.00013972,2]
[333400637,1722107257764,-943.27,0.00013972,2]
[333400638,1722107257787,-500.0,0.00013972,2]
[333400639,1722107257810,-500.0,0.00013972,2]
[333400640,1722107257832,-503.71,0.00013972,2]
[333400641,1722107257855,-712.08,0.00013972,2]
[333400642,1722107257877,-1021.24,0.00013972,2]
[333400643,1722107257900,-500.0,0.00013972,2]
[333400644,1722107257922,-727.68,0.00013972,2]
[333400645,1722107257952,-1113.73,0.00013972,2]
[333400646,1722107257974,-1282.26,0.00013972,2]
[333400647,1722107257998,-745.63,0.00013972,2]
[333400648,1722107258020,-500.0,0.00013972,2]
[333400649,1722107258067,-1052.1,0.00013972,2]
[333400650,1722107258090,-1888.14,0.00013972,2]
[333400651,1722107258113,-500.0,0.00013972,2]
[333400652,1722107258138,-2291.38,0.00013972,2]
[333400653,1722107258163,-1087.07,0.00013972,2]
[333400654,1722107258193,-557.43,0.00013972,2]
[333400655,1722107258217,-500.0,0.00013972,2]
[333400656,1722107258240,-1102.94,0.00013972,2]
[333400657,1722107258262,-500.0,0.00013972,2]
[333400658,1722107258284,-500.0,0.00013972,2]
[333400659,1722107258307,-957.52,0.00013972,2]
[333400660,1722107258327,-500.0,0.00013972,2]
[333400661,1722107258349,-188.763144,0.00013972,2]
[333400662,1722107258371,-4000.0,0.00014,4]
[333400663,1722107258392,-153.0,0.0001411,2]
[333400664,1722107258417,-500.0,0.00014235,2]
[333400665,1722107258446,-236.718507,0.00014236,2]
[333400666,1722107258467,-151.0,0.00014236,2]
[333400667,1722107258490,-246.537548,0.00014236,2]
[333400668,1722107258512,-151.0,0.00014236,2]
[333400669,1722107258535,-151.0,0.00014236,2]
[333400670,1722107258557,-540.412791,0.00014236,2]
[333400671,1722107258579,-540.412791,0.00014236,2]
[333400672,1722107258600,-151.0,0.00014236,2]
[333400673,1722107258621,-151.0,0.00014236,2]
[333400674,1722107258644,-151.0,0.00014236,2]
[333400675,1722107258669,-241.979422,0.00014236,2]
[333400676,1722107258695,-151.0,0.00014236,2]
[333400677,1722107258717,-210.469016,0.00014236,2]
[333400678,1722107258742,-210.469016,0.00014236,2]
[333400679,1722107258764,-39444.3347948,0.00014236,2]
[333400680,1722107258787,-500.0,0.00014245,2]
[333400681,1722107258810,-500.0,0.00014245,2]
[333400682,1722107258834,-500.0,0.00014245,2]
[333400683,1722107258857,-565.78,0.00014246,2]
[333400684,1722107258879,-683.45,0.00014246,2]
[333400685,1722107258901,-500.0,0.00014246,2]
[333400686,1722107258922,-542.25,0.00014246,2]
[333400687,1722107258946,-500.0,0.00014246,2]
[333400688,1722107258968,-1514.42,0.00014246,2]
[333400689,1722107258989,-1155.73,0.00014246,2]
[333400690,1722107259011,-500.0,0.00014246,2]
[333400691,1722107259032,-500.0,0.00014246,2]
[333400692,1722107259052,-550.39,0.00014246,2]
[333400693,1722107259073,-997.03,0.00014246,2]
[333400694,1722107259095,-500.0,0.00014246,2]
[333400695,1722107259116,-556.38,0.00014246,2]
[333400696,1722107259138,-522.01,0.00014246,2]
[333400697,1722107259160,-881.64,0.00014246,2]
[333400698,1722107259186,-151.0,0.00014246,2]
[333400699,1722107259208,-902.75,0.00014246,2]
[333400700,1722107259230,-1040.46,0.00014246,2]
[333400701,1722107259252,-500.0,0.00014246,2]
[333400702,1722107259273,-500.0,0.00014246,2]
[333400703,1722107259296,-642.68,0.00014246,2]
[333400704,1722107259318,-500.0,0.00014246,2]
[333400705,1722107259340,-151.0,0.00014246,2]
[333400706,1722107259362,-500.0,0.00014246,2]
[333400707,1722107259385,-500.0,0.00014246,2]
[333400708,1722107259407,-500.0,0.00014246,2]
[333400709,1722107259436,-510.51,0.00014246,2]
[333400710,1722107259458,-500.0,0.00014246,2]
[333400711,1722107259481,-544.51,0.00014246,2]
[333400712,1722107259502,-500.0,0.00014246,2]
[333400713,1722107259525,-151.0,0.00014246,2]
[333400714,1722107259547,-151.0,0.00014246,2]
[333400715,1722107259570,-646.49,0.00014246,2]
[333400716,1722107259594,-708.14,0.00014246,2]
[333400717,1722107259615,-500.0,0.00014246,2]
[333400718,1722107259641,-500.0,0.00014246,2]
[333400719,1722107259664,-500.0,0.00014246,2]
[333400720,1722107259691,-500.0,0.00014246,2]
[333400721,1722107259715,-500.0,0.00014246,2]
[333400722,1722107259739,-850.1,0.00014246,2]
[333400723,1722107259763,-500.0,0.00014246,2]
[333400724,1722107259786,-974.44,0.00014246,2]
[333400725,1722107259809,-395.62393378,0.00014246,2]
[333400726,1722107259832,-276.271723,0.00014246,2]
[333400727,1722107259853,-629.84,0.00014246,2]
[333400728,1722107259876,-276.271723,0.00014246,2]
[333400729,1722107259899,-746.96,0.00014246,2]
[333400730,1722107259922,-500.0,0.00014246,2]
[333400731,1722107259950,-3766.74,0.00014246,2]
[333400732,1722107259972,-500.0,0.00014246,2]
[333400733,1722107259996,-151.0,0.00014246,2]
[333400734,1722107260018,-876.33,0.00014246,2]
[333400735,1722107260042,-1684.79,0.00014246,2]
[333400736,1722107260065,-6554.33,0.00014246,2]
[333400737,1722107260088,-867.81,0.00014246,2]
[333400738,1722107260112,-1868.07,0.00014246,2]
[333400739,1722107260136,-840.67,0.00014246,2]
[333400740,1722107260158,-500.0,0.00014246,2]
[333400741,1722107260186,-2878.37,0.00014246,2]
[333400742,1722107260209,-995.95,0.00014246,2]
[333400743,1722107260231,-500.0,0.00014246,2]
[333400744,1722107260255,-1200.36,0.00014246,2]
[333400745,1722107260277,-839.56,0.00014246,2]
[333400746,1722107260299,-500.0,0.00014246,2]
[333400747,1722107260320,-500.0,0.00014246,2]
[333400748,1722107260343,-467.92123641,0.00014246,2]
[333400749,1722107260367,-500.0,0.00014246,2]
[333400750,1722107260388,-578.43,0.00014246,2]
[333400751,1722107260410,-567.97,0.00014246,2]
[333400752,1722107260436,-821.69,0.00014246,2]
[333400753,1722107260457,-680.1,0.00014246,2]
[333400754,1722107260481,-539.66,0.00014246,2]
[333400755,1722107260501,-939.26,0.00014246,2]
[333400756,1722107260524,-862.6,0.00014246,2]
[333400757,1722107260546,-500.0,0.00014246,2]
[333400758,1722107260569,-4617.3,0.00014246,2]
[333400759,1722107260590,-697.17,0.00014246,2]
[333400760,1722107260611,-500.0,0.00014246,2]
[333400761,1722107260633,-521.28,0.00014246,2]
[333400762,1722107260659,-967.06,0.00014246,2]
[333400763,1722107260683,-500.0,0.00014246,2]
[333400764,1722107260707,-1778.05,0.00014246,2]
[333400765,1722107260734,-2779.11,0.00014246,2]
[333400766,1722107260757,-943.27,0.00014246,2]
[333400767,1722107260779,-500.0,0.00014246,2]
[333400768,1722107260801,-169.50196556,0.00014246,2]
[333400769,1722107260823,-503.71,0.00014246,2]
[333400770,1722107260844,-1021.24,0.00014246,2]
[333400771,1722107260867,-712.08,0.00014246,2]
[333400772,1722107260890,-500.0,0.00014246,2]
[333400773,1722107260912,-727.68,0.00014246,2]
[333400774,1722107260936,-1113.73,0.00014246,2]
[333400775,1722107260959,-1282.26,0.00014246,2]
[333400776,1722107260983,-745.63,0.00014246,2]
[333400777,1722107261005,-500.0,0.00014246,2]
[333400778,1722107261027,-1052.1,0.00014246,2]
[333400779,1722107261049,-1888.14,0.00014246,2]
[333400780,1722107261073,-2291.38,0.00014246,2]
[333400781,1722107261096,-1087.07,0.00014246,2]
[333400782,1722107261118,-557.43,0.00014246,2]
[333400783,1722107261141,-500.0,0.00014246,2]
[333400784,1722107261164,-1102.94,0.00014246,2]
[333400785,1722107261188,-500.0,0.00014246,2]
[333400786,1722107261211,-957.52,0.00014246,2]
[333400787,1722107261232,-500.0,0.00014246,2]
[333400788,1722107261255,-188.763144,0.00014246,2]
[333400789,1722107261276,-720.049491,0.00014247,2]
[333400790,1722107261297,-750.0,0.00014247,2]
[333400791,1722107261320,-621.94118667,0.00014487,2]
[333400792,1722107261343,-11532.657368,0.00014509,2]
[333400793,1722107282116,231.60275955,9.999e-05,2]
[333400794,1722107364118,-154.65203293,0.00012119,2]
[333400795,1722107405354,249.450142,9.9e-05,2]
[333400796,1722107405377,23.92322031,9.9e-05,2]
[333401120,1722107438686,-166.681512,0.00013425,2]
[333401121,1722107438701,-459.69978553,0.00013638,2]
[333401122,1722107438901,-949.30021447,0.00013638,2]
[333401123,1722107438910,-300.0,0.00013697,2]
[333401124,1722107438920,-500.0,0.00013698,2]
[333401125,1722107438929,-3295.9,0.00013698,2]
[333401126,1722107438939,-5735.04,0.00013698,2]
[333401127,1722107438951,-500.0,0.00013698,2]
[333401128,1722107438962,-766.79,0.00013698,2]
[333401129,1722107438971,-2518.57,0.00013698,2]
[333401130,1722107438981,-595.09,0.00013698,2]
[333401131,1722107438991,-468.35629107,0.00013698,2]
[333401199,1722107443290,-1166.20370893,0.00013698,2]
[333401200,1722107443300,-518.47,0.00013698,2]
[333401202,1722107443310,-500.0,0.00013698,2]
[333401203,1722107443319,-1050.31,0.00013698,2]
[333401204,1722107443332,-500.0,0.00013698,2]
[333401205,1722107443342,-718.98,0.00013698,2]
[333401206,1722107443351,-734.62,0.00013698,2]
[333401207,1722107443361,-1325.11,0.00013698,2]
[333401208,1722107443370,-754.77,0.00013698,2]
[333401209,1722107443380,-500.0,0.00013698,2]
[333401210,1722107443389,-821.85,0.00013698,2]
[333401211,1722107443398,-500.0,0.00013698,2]
[333401212,1722107443408,-500.0,0.00013698,2]
[333401213,1722107443419,-500.0,0.00013698,2]
[333401214,1722107443430,-4040.13,0.00013698,2]
[333401215,1722107443441,-500.0,0.00013698,2]
[333401217,1722107443452,-2431.73,0.00013698,2]
[333401218,1722107443462,-500.0,0.00013698,2]
[333401220,1722107443472,-610.03,0.00013698,2]
[333401222,1722107443481,-846.18,0.00013698,2]
[333401224,1722107443491,-825.36,0.00013698,2]
[333401225,1722107443501,-1011.26,0.00013698,2]
[333401227,1722107443510,-893.59,0.00013698,2]
[333401229,1722107443519,-1555.8,0.00013698,2]
[333401231,1722107443529,-500.0,0.00013698,2]
[333401232,1722107443538,-360.61,0.00013698,2]
[333401234,1722107443548,-623.07,0.00013698,2]
[333401236,1722107443557,-480.32097151,0.00013698,2]
[333401237,1722107443575,-19.67902849,0.00013698,2]
[333401238,1722107443584,-500.0,0.00013698,2]
[333401239,1722107443593,-500.0,0.00013698,2]
[333401240,1722107443603,-974.52,0.00013698,2]
[333401242,1722107443612,-541.71854045,0.00013698,2]
[333401244,1722107443621,-872.4,0.00013698,2]
[333401245,1722107443630,-636.72,0.00013698,2]
[333401246,1722107443639,-500.0,0.00013698,2]
[333401247,1722107443649,-652.43,0.00013698,2]
[333401248,1722107443658,-789.9,0.00013698,2]
[333401249,1722107443668,-500.0,0.00013698,2]
[333401250,1722107443677,-1121.98,0.00013698,2]
[333401251,1722107443691,-500.0,0.00013698,2]
[333401252,1722107443700,-500.0,0.00013698,2]
[333401253,1722107443709,-380.52,0.00013698,2]
[333401254,1722107443718,-920.58,0.00013698,2]
[333401255,1722107443727,-1652.13,0.00013698,2]
[333401256,1722107443737,-500.0,0.00013698,2]
[333401257,1722107443746,-426.34513532,0.00013698,2]
[333401258,1722107443755,-951.18,0.00013698,2]
[333401260,1722107443766,-401.57602234,0.00013698,2]
[333401262,1722107443776,-2004.96,0.00013698,2]
[333401264,1722107443785,-500.0,0.00013698,2]
[333401265,1722107443795,-500.0,0.00013698,2]
[333401267,1722107443804,-244.60138534,0.00013698,2]
[333401268,1722107443814,-500.0,0.00013698,2]
[333401269,1722107443826,-240.95534342,0.00013698,2]
[333401270,1722107443835,-910.4,0.00013698,2]
[333401271,1722107443845,-965.07,0.00013698,2]
[333401272,1722107443854,-500.0,0.00013698,2]
[333401273,1722107443863,-188.763144,0.00013962,2]
[333401274,1722107443873,-294.36144422,0.00013971,2]
[333401275,1722107443883,-500.0,0.00013971,2]
[333401276,1722107443892,-500.0,0.00013971,2]
[333401277,1722107443901,-500.0,0.00013971,2]
[333401278,1722107443911,-500.0,0.00013971,2]
[333401279,1722107443920,-276.5060661,0.00013971,2]
[333401280,1722107443930,-500.0,0.00013971,2]
[333401281,1722107443939,-500.0,0.00013971,2]
[333401282,1722107443948,-500.0,0.00013971,2]
[333401283,1722107443958,-500.0,0.00013971,2]
[333401284,1722107443968,-590.24721608,0.00013971,2]
[333401285,1722107443977,-500.0,0.00013971,2]
[333401286,1722107443987,-500.0,0.00013971,2]
[333401287,1722107443997,-188.763144,0.00013972,2]
[333401288,1722107444007,-500.0,0.00013972,2]
[333401289,1722107444016,-3295.9,0.00013972,2]
[333401290,1722107444026,-5735.04,0.00013972,2]
[333401291,1722107444036,-500.0,0.00013972,2]
[333401292,1722107444045,-766.79,0.00013972,2]
[333401293,1722107444055,-2518.57,0.00013972,2]
[333401294,1722107444064,-595.09,0.00013972,2]
[333401295,1722107444073,-1634.56,0.00013972,2]
[333401296,1722107444088,-518.47,0.00013972,2]
[333401297,1722107444098,-500.0,0.00013972,2]
[333401298,1722107444109,-1050.31,0.00013972,2]
[333401299,1722107444120,-500.0,0.00013972,2]
[333401300,1722107444131,-718.98,0.00013972,2]
[333401301,1722107444142,-1325.11,0.00013972,2]
[333401302,1722107444151,-734.62,0.00013972,2]
[333401303,1722107444162,-754.77,0.00013972,2]
[333401304,1722107444172,-500.0,0.00013972,2]
[333401305,1722107444182,-821.85,0.00013972,2]
[333401306,1722107444192,-500.0,0.00013972,2]
[333401307,1722107444202,-500.0,0.00013972,2]
[333401308,1722107444212,-500.0,0.00013972,2]
[333401309,1722107444222,-4040.13,0.00013972,2]
[333401310,1722107444232,-500.0,0.00013972,2]
[333401311,1722107444242,-2431.73,0.00013972,2]
[333401312,1722107444251,-610.03,0.00013972,2]
[333401313,1722107444261,-846.18,0.00013972,2]
[333401314,1722107444270,-825.36,0.00013972,2]
[333401315,1722107444280,-1011.26,0.00013972,2]
[333401316,1722107444289,-893.59,0.00013972,2]
[333401317,1722107444299,-1555.8,0.00013972,2]
[333401318,1722107444308,-380.43705623,0.00013972,2]
[333401319,1722107444317,-623.07,0.00013972,2]
[333401320,1722107444330,-500.0,0.00013972,2]
[333401321,1722107444340,-500.0,0.00013972,2]
[333401322,1722107444349,-500.0,0.00013972,2]
[333401323,1722107444358,-974.52,0.00013972,2]
[333401324,1722107444368,-872.4,0.00013972,2]
[333401325,1722107444377,-636.72,0.00013972,2]
[333401326,1722107444386,-500.0,0.00013972,2]
[333401327,1722107444396,-652.43,0.00013972,2]
[333401328,1722107444404,-789.9,0.00013972,2]
[333401329,1722107444414,-500.0,0.00013972,2]
[333401330,1722107444423,-1121.98,0.00013972,2]
[333401331,1722107444433,-920.58,0.00013972,2]
[333401332,1722107444442,-1652.13,0.00013972,2]
[333401333,1722107444452,-500.0,0.00013972,2]
[333401334,1722107444462,-951.18,0.00013972,2]
[333401335,1722107444471,-2004.96,0.00013972,2]
[333401336,1722107444481,-500.0,0.00013972,2]
[333401337,1722107444491,-910.4,0.00013972,2]
[333401338,1722107444500,-965.07,0.00013972,2]
[333401339,1722107444509,-188.763144,0.00014246,2]
[333401340,1722107444520,-500.0,0.00014246,2]
[333401341,1722107444529,-3295.9,0.00014246,2]
[333401342,1722107444538,-5735.04,0.00014246,2]
[333401343,1722107444548,-500.0,0.00014246,2]
[333401344,1722107444557,-766.79,0.00014246,2]
[333401345,1722107444568,-2518.57,0.00014246,2]
[333401346,1722107444578,-595.09,0.00014246,2]
[333401347,1722107444588,-1634.56,0.00014246,2]
[333401348,1722107444598,-518.47,0.00014246,2]
[333401349,1722107444608,-500.0,0.00014246,2]
[333401350,1722107444618,-1050.31,0.00014246,2]
[333401351,1722107444627,-500.0,0.00014246,2]
[333401352,1722107444637,-718.98,0.00014246,2]
[333401353,1722107444646,-1325.11,0.00014246,2]
[333401354,1722107444656,-734.62,0.00014246,2]
[333401355,1722107444665,-754.77,0.00014246,2]
[333401356,1722107444675,-500.0,0.00014246,2]
[333401357,1722107444685,-821.85,0.00014246,2]
[333401358,1722107444699,-500.0,0.00014246,2]
[333401359,1722107444709,-500.0,0.00014246,2]
[333401360,1722107444719,-500.0,0.00014246,2]
[333401361,1722107444728,-4040.13,0.00014246,2]
[333401362,1722107444739,-500.0,0.00014246,2]
[333401363,1722107444749,-2431.73,0.00014246,2]
[333401364,1722107444758,-610.03,0.00014246,2]
[333401365,1722107444769,-846.18,0.00014246,2]
[333401366,1722107444778,-825.36,0.00014246,2]
[333401367,1722107444788,-1011.26,0.00014246,2]
[333401368,1722107444797,-893.59,0.00014246,2]
[333401369,1722107444807,-1555.8,0.00014246,2]
[333401370,1722107444816,-623.07,0.00014246,2]
[333401371,1722107444828,-500.0,0.00014246,2]
[333401372,1722107444839,-500.0,0.00014246,2]
[333401373,1722107444848,-500.0,0.00014246,2]
[333401374,1722107444857,-974.52,0.00014246,2]
[333401375,1722107444867,-872.4,0.00014246,2]
[333401376,1722107444876,-636.72,0.00014246,2]
[333401377,1722107444886,-500.0,0.00014246,2]
[333401378,1722107444895,-652.43,0.00014246,2]
[333401379,1722107445020,-789.9,0.00014246,2]
[333401380,1722107445030,-500.0,0.00014246,2]
[333401381,1722107445040,-1121.98,0.00014246,2]
[333401382,1722107445051,-920.58,0.00014246,2]
[333401383,1722107445061,-1652.13,0.00014246,2]
[333401384,1722107445071,-500.0,0.00014246,2]
[333401385,1722107445084,-951.18,0.00014246,2]
[333401386,1722107445094,-2004.96,0.00014246,2]
[333401387,1722107445103,-500.0,0.00014246,2]
[333401388,1722107445113,-910.4,0.00014246,2]
[333401389,1722107445122,-965.07,0.00014246,2]
[333401390,1722107445132,-684.047016,0.00014247,2]
[333401391,1722107445141,-151.0,0.00014509,2]
[333401392,1722107445151,-540.412791,0.00014509,2]
[333401393,1722107445160,-540.412791,0.00014509,2]
[333401394,1722107445170,-151.0,0.00014509,2]
[333401395,1722107445180,-151.0,0.00014509,2]
[333401396,1722107445189,-151.0,0.00014509,2]
[333401397,1722107445199,-151.0,0.00014509,2]
[333401398,1722107445208,-210.469016,0.00014509,2]
[333401399,1722107445218,-210.469016,0.00014509,2]
[333401400,1722107445228,-151.0,0.0001451,2]
[333401401,1722107445238,-287.772302,0.0001451,2]
[333401402,1722107445247,-276.271723,0.0001451,2]
[333401403,1722107445257,-276.271723,0.0001451,2]
[333401404,1722107445267,-28989.7698392,0.0001451,2]
[333401405,1722107445277,-683.45,0.0001452,2]
[333401406,1722107445287,-500.0,0.0001452,2]
[333401407,1722107445296,-550.39,0.0001452,2]
[333401408,1722107445305,-308.17,0.0001452,2]
[333401409,1722107445315,-881.64,0.0001452,2]
[333401410,1722107445324,-500.0,0.0001452,2]
[333401411,1722107445336,-642.68,0.0001452,2]
[333401412,1722107445346,-500.0,0.0001452,2]
[333401413,1722107445355,-500.0,0.0001452,2]
[333401414,1722107445366,-601.44494606,0.0001452,2]
[333401415,1722107445375,-510.51,0.0001452,2]
[333401416,1722107445385,-500.0,0.0001452,2]
[333401417,1722107445395,-544.51,0.0001452,2]
[333401418,1722107445405,-500.0,0.0001452,2]
[333401419,1722107445415,-646.49,0.0001452,2]
[333401420,1722107445426,-708.14,0.0001452,2]
[333401421,1722107445437,-500.0,0.0001452,2]
[333401422,1722107445447,-500.0,0.0001452,2]
[333401423,1722107445456,-500.0,0.0001452,2]
[333401424,1722107445468,-500.0,0.0001452,2]
[333401425,1722107445477,-850.1,0.0001452,2]
[333401426,1722107445487,-629.84,0.0001452,2]
[333401427,1722107445497,-746.96,0.0001452,2]
[333401428,1722107445507,-500.0,0.0001452,2]
[333401429,1722107445516,-867.81,0.0001452,2]
[333401430,1722107445526,-840.67,0.0001452,2]
[333401431,1722107445536,-500.0,0.0001452,2]
[333401432,1722107445545,-500.0,0.0001452,2]
[333401433,1722107445555,-500.0,0.0001452,2]
[333401434,1722107445564,-578.43,0.0001452,2]
[333401435,1722107445574,-567.97,0.0001452,2]
[333401436,1722107445585,-500.0,0.0001452,2]
[333401437,1722107445595,-521.28,0.0001452,2]
[333401438,1722107445604,-500.0,0.0001452,2]
[333401439,1722107445613,-957.52,0.0001452,2]
[333401440,1722107445622,-500.0,0.0001452,2]
[333401441,1722107445631,-188.763144,0.0001452,2]
[333401442,1722107445641,-188.763144,0.0001452,2]
[333401443,1722107445650,-500.0,0.0001452,2]
[333401444,1722107445659,-3295.9,0.0001452,2]
[333401445,1722107445669,-5735.04,0.0001452,2]
[333401446,1722107445678,-500.0,0.0001452,2]
[333401447,1722107445688,-766.79,0.0001452,2]
[333401448,1722107445700,-2518.57,0.0001452,2]
[333401449,1722107445709,-595.09,0.0001452,2]
[333401450,1722107445718,-1634.56,0.0001452,2]
[333401451,1722107445729,-518.47,0.0001452,2]
[333401452,1722107445738,-500.0,0.0001452,2]
[333401453,1722107445748,-1050.31,0.0001452,2]
[333401454,1722107445757,-500.0,0.0001452,2]
[333401455,1722107445768,-718.98,0.0001452,2]
[333401456,1722107445777,-1325.11,0.0001452,2]
[333401457,1722107445786,-734.62,0.0001452,2]
[333401458,1722107445796,-754.77,0.0001452,2]
[333401459,1722107445805,-500.0,0.0001452,2]
[333401460,1722107445814,-821.85,0.0001452,2]
[333401461,1722107445824,-500.0,0.0001452,2]
[333401462,1722107445835,-500.0,0.0001452,2]
[333401463,1722107445845,-500.0,0.0001452,2]
[333401464,1722107445854,-4040.13,0.0001452,2]
[333401465,1722107445863,-475.76528554,0.0001452,2]
[333401466,1722107445883,-24.23471446,0.0001452,2]
[333401467,1722107445892,-448.70303528,0.0001452,2]
[333401468,1722107445903,-1983.02696472,0.0001452,2]